bitfinex/quotes_ETHUSD_20240915
["timestamp","ask_amount","ask_price","bid_price","bid_amount"]
[1726432439441,4.22862,2364.9,2364.3,2.59721]
[1726432439596,5.97691363,2365.0,2364.3,2.59721]
[1726432439798,16.99183313,2365.1,2364.4,2.746221]
[1726432439997,16.99183313,2365.1,2364.4,2.4865]
[1726432440230,4.22835,2365.0,2364.4,2.4865]
[1726432440994,12.76354313,2365.1,2364.4,2.4865]
[1726432441236,11.0150095,2365.1,2364.6,2.4865]
[1726432441917,6.7868595,2365.1,2364.7,0.08457232]
[1726432442104,6.7868595,2365.1,2364.5,2.4865]
[1726432442311,6.7868595,2365.1,2364.7,2.4865]
[1726432443258,12.76292313,2365.5,2364.7,2.4865]
[1726432443544,4.22753,2365.5,2364.7,2.4865]
[1726432443698,8.45508,2365.5,2364.9,2.4865]
[1726432444327,10.20361363,2365.5,2364.9,2.4865]
[1726432444529,4.22753,2365.5,2364.9,2.4865]
[1726432444892,0.0388065,2365.6,2365.0,0.084558]
[1726432445247,0.0388065,2365.6,2365.1,4.11174974]
[1726432445397,0.0388065,2365.6,2365.2,2.4865]
[1726432445606,0.0388065,2365.6,2365.4,2.4865]
[1726432447631,0.0388065,2365.6,2364.9,2.4865]
[1726432447840,0.0388065,2365.6,2365.0,3.0]
[1726432448039,0.0388065,2365.6,2365.1,2.4865]
[1726432457258,4.2661765,2365.6,2365.1,2.4865]
[1726432457751,0.03768295,2365.5,2365.1,2.4865]
[1726432458153,0.03768295,2365.5,2365.1,2.73515]
[1726432459773,0.03768295,2365.5,2365.1,2.4865]
[1726432465406,0.03768295,2365.5,2365.2,0.0845511]
[1726432465561,0.03768295,2365.5,2365.1,2.4865]
[1726432466272,0.03768295,2365.5,2365.1,6.51369703]
[1726432466514,0.03768295,2365.5,2365.3,2.3862]
[1726432466662,0.03768295,2365.5,2365.4,0.53862]
[1726432466866,0.03768295,2365.5,2365.4,3.53862]
[1726432472407,0.0388065,2365.6,2365.4,3.53862]
[1726432473111,0.08150597,2365.6,2365.4,3.53862]
[1726432482084,0.08150597,2365.6,2365.4,16.63862]
[1726432482270,0.08150597,2365.6,2365.5,1.902482]
[1726432487857,0.08150597,2365.6,2365.5,17.300282]
[1726432488957,0.08150597,2365.6,2365.5,18.099449]
[1726432489168,0.08150597,2365.6,2365.5,17.300282]
[1726432489517,0.08150597,2365.6,2365.5,18.09944399]
[1726432491814,0.08150597,2365.6,2365.5,21.09944399]
[1726432492010,0.08150597,2365.6,2365.5,21.49117511]
[1726432492011,0.0388065,2365.6,2365.5,21.49117511]
[1726432492863,0.0388065,2365.6,2365.5,21.49115742]
[1726432493065,0.0388065,2365.6,2365.5,21.09935326]
[1726432493279,0.0388065,2365.6,2365.5,21.49106783]
[1726432495679,0.0388065,2365.6,2365.5,18.80155326]
[1726432496416,0.0388065,2365.6,2365.5,18.002482]
[1726432496615,0.0388065,2365.6,2365.5,18.80163959]
[1726432499813,0.0388065,2365.6,2365.5,21.29253959]
[1726432500385,0.0388065,2365.6,2365.5,20.493382]
[1726432500577,0.0388065,2365.6,2365.5,21.29253916]
[1726432500778,0.0388065,2365.6,2365.5,20.493382]
[1726432500974,0.0388065,2365.6,2365.5,21.29253635]
[1726432501181,0.0388065,2365.6,2365.5,18.80164048]
[1726432501397,0.0388065,2365.6,2365.5,18.002482]
[1726432502273,0.0388065,2365.6,2365.5,18.80165256]
[1726432502820,0.0388065,2365.6,2365.5,19.19338415]
[1726432502996,0.0388065,2365.6,2365.5,18.80160301]
[1726432503189,0.0388065,2365.6,2365.5,20.88510713]
[1726432503437,0.0388065,2365.6,2365.5,23.54005532]
[1726432506119,0.0388065,2365.6,2365.5,21.68421051]
[1726432506321,0.0388065,2365.6,2365.5,21.29248538]
[1726432507036,0.0388065,2365.6,2365.5,21.68422624]
[1726432507242,0.0388065,2365.6,2365.5,23.54007105]
[1726432507425,0.0388065,2365.6,2365.5,25.0532088]
[1726432507632,0.0388065,2365.6,2365.5,25.53051036]
[1726432507791,0.0388065,2365.6,2365.5,25.53137997]
[1726432508124,0.0388065,2365.6,2365.5,25.05407841]
[1726432508512,0.0388065,2365.6,2365.5,25.53138763]
[1726432509239,0.0388065,2365.6,2365.5,25.53138855]
[1726432510455,0.0388065,2365.6,2365.5,23.67554374]
[1726432510732,0.0388065,2365.6,2365.5,18.39422286]
[1726432510940,0.0388065,2365.6,2365.5,18.80160528]
[1726432511098,0.0388065,2365.6,2365.5,19.19334066]
[1726432511490,0.0388065,2365.6,2365.5,18.80158937]
[1726432511705,0.0388065,2365.6,2365.5,19.19331839]
[1726432512859,0.0388065,2365.6,2365.5,20.70735108]
[1726432513021,0.0388065,2365.6,2365.5,20.08059799]
[1726432513215,0.0388065,2365.6,2365.5,19.19331839]
[1726432513533,0.0388065,2365.6,2365.5,18.80156662]
[1726432513742,0.0388065,2365.6,2365.5,19.19328654]
[1726432513948,0.0388065,2365.6,2365.5,19.82003599]
[1726432514257,0.0388065,2365.6,2365.5,19.19328654]
[1726432515122,0.0388065,2365.6,2365.5,18.80156662]
[1726432516132,0.0388065,2365.6,2365.5,13.89908462]
[1726432516353,0.0388065,2365.6,2365.5,13.1]
[1726432516765,0.0388065,2365.6,2365.5,13.89916641]
[1726432517061,0.0388065,2365.6,2365.5,13.1]
[1726432517872,0.0388065,2365.6,2365.5,13.89915674]
[1726432518059,0.0388065,2365.6,2365.5,15.52983241]
[1726432518569,0.0388065,2365.6,2365.5,17.73067567]
[1726432518877,0.0388065,2365.6,2365.5,22.21642556]
[1726432519169,0.0388065,2365.6,2365.5,18.92154596]
[1726432519354,0.0388065,2365.6,2365.5,18.52982651]
[1726432522250,0.0388065,2365.6,2365.5,18.92156849]
[1726432522639,0.0388065,2365.6,2365.5,21.32916849]
[1726432522841,0.0388065,2365.6,2365.5,22.21644809]
[1726432523356,0.0388065,2365.6,2365.5,22.69376287]
[1726432523755,0.0388065,2365.6,2365.5,22.78048327]
[1726432524040,0.0388065,2365.6,2365.5,24.55326711]
[1726432524232,0.0388065,2365.6,2365.5,25.3169368]
[1726432525032,0.0388065,2366.3,2365.8,3.55]
[1726432525237,0.0388065,2366.3,2365.9,5.07824901]
[1726432525434,0.0388065,2366.3,2366.0,1.19089282]
[1726432525662,0.0388065,2366.3,2365.9,3.88735619]
[1726432525822,0.0388065,2366.3,2366.0,0.79892199]
[1726432526023,0.0388065,2366.3,2366.1,1.26754981]
[1726432526262,0.0388065,2366.3,2366.1,2.87622782]
[1726432526564,0.0388065,2366.3,2366.2,3.0]
[1726432527233,0.0388065,2366.3,2366.2,16.1]
[1726432527466,0.0388065,2366.3,2366.2,18.48826264]
[1726432527629,0.0388065,2366.3,2366.2,19.28707369]
[1726432528352,0.0388065,2366.3,2366.2,19.28708321]
[1726432529255,0.0388065,2366.3,2366.2,22.11868321]
[1726432529455,0.0388065,2366.3,2366.2,23.5560394]
[1726432529801,0.0388065,2366.3,2366.2,24.03314318]
[1726432530001,0.0388065,2366.3,2366.2,23.5560394]
[1726432530295,0.0388065,2366.3,2366.2,24.4768369]
[1726432530467,0.0388065,2366.3,2366.2,24.0528369]
[1726432530675,0.0388065,2366.3,2366.2,25.88890507]
[1726432531000,0.0388065,2366.3,2366.2,26.6876904]
[1726432531219,0.0388065,2366.3,2366.2,26.6876931]
[1726432531555,0.0388065,2366.3,2366.2,18.48826264]
[1726432534904,0.14107186,2366.3,2366.2,18.48826264]
[1726432535313,0.0388065,2366.3,2366.2,18.48826264]
[1726432535982,0.14107186,2366.3,2366.2,18.48826264]
[1726432536182,0.0388065,2366.3,2366.2,18.48826264]
[1726432536409,0.14107186,2366.3,2366.2,18.48826264]
[1726432536710,0.0388065,2366.3,2366.2,18.48826264]
[1726432536909,0.13735352,2366.3,2366.2,18.48826264]
[1726432537579,0.13735352,2366.3,2366.2,24.95020507]
[1726432537968,0.0388065,2366.3,2366.2,24.95020507]
[1726432538794,0.0388065,2366.3,2366.2,25.50020507]
[1726432539817,0.0388065,2366.3,2366.2,25.92420507]
[1726432541426,0.0388065,2366.3,2366.2,26.1382644]
[1726432547345,0.0388065,2366.3,2366.2,27.02346534]
[1726432549804,0.0388065,2367.0,2366.5,0.974]
[1726432550132,0.09580766,2366.9,2366.7,0.55]
[1726432551012,0.09580766,2366.9,2366.8,0.08448318]
[1726432551520,0.09580766,2366.9,2366.7,0.55]
[1726432551841,0.09580766,2366.9,2366.7,2.24951935]
[1726432555152,0.09580766,2366.9,2366.7,2.33400133]
[1726432555324,0.09580766,2366.9,2366.8,0.08448198]
[1726432555527,0.09580766,2366.9,2366.7,2.24951935]
[1726432555841,0.09580766,2366.9,2366.8,18.57767563]
[1726432556006,0.09580766,2366.9,2366.8,21.06229937]
[1726432556212,0.09580766,2366.9,2366.8,20.97781724]
[1726432556750,0.09580766,2366.9,2366.8,21.52781724]
[1726432556925,0.09580766,2366.9,2366.8,19.05581724]
[1726432559366,0.09580766,2366.9,2366.8,21.52781724]
[1726432559770,0.0388065,2367.0,2366.9,3.55]
[1726432560072,0.0388065,2367.0,2366.9,10.1237284]
[1726432560281,0.0388065,2367.0,2366.9,6.10468597]
[1726432562256,0.0388065,2367.0,2366.8,13.0211935]
[1726432562599,0.09303522,2366.9,2366.8,13.0211935]
[1726432563781,8.33700765,2366.9,2366.8,13.0211935]
[1726432564175,12.56193765,2366.9,2366.8,13.0211935]
[1726432564595,16.78686765,2366.9,2366.8,13.0211935]
[1726432564781,19.78686765,2366.9,2366.8,13.0211935]
[1726432567252,15.56193765,2366.9,2366.8,13.0211935]
[1726432568912,12.56193765,2366.9,2366.8,13.0211935]
[1726432569111,4.31796522,2366.9,2366.8,13.0211935]
[1726432569861,0.09303522,2366.9,2366.8,13.0211935]
[1726432573884,4.31796522,2366.9,2366.8,13.0211935]
[1726432574057,0.09303522,2366.9,2366.8,13.0211935]
[1726432574563,4.31796522,2366.9,2366.8,13.0211935]
[1726432574775,0.09303522,2366.9,2366.8,13.0211935]
[1726432584104,12.56193765,2366.9,2366.8,13.0211935]
[1726432585453,0.09303522,2366.9,2366.8,13.0211935]
[1726432587678,0.09303522,2366.9,2366.8,14.32331285]
[1726432588247,0.09303522,2366.9,2366.8,19.80581285]
[1726432588450,0.0388065,2367.0,2366.9,18.41065828]
[1726432589155,0.0388065,2367.0,2366.9,18.96065828]
[1726432589314,0.0388065,2367.0,2366.9,21.38884029]
[1726432590225,0.0388065,2367.0,2366.9,20.83884029]
[1726432591244,0.0388065,2367.0,2366.9,12.92815828]
[1726432594347,0.0388065,2367.0,2366.9,12.82815828]
[1726432596019,0.12269479,2367.0,2366.9,12.82815828]
[1726432596261,0.0388065,2367.0,2366.9,12.82815828]
[1726432596446,0.12269479,2367.0,2366.9,12.82815828]
[1726432596666,0.0388065,2367.0,2366.9,12.82815828]
[1726432596819,0.12269479,2367.0,2366.9,12.82815828]
[1726432603279,0.12269479,2367.0,2366.9,14.35642411]
[1726432605966,11.0106495,2367.6,2367.0,12.70546349]
[1726432606172,0.08105497,2367.5,2367.1,12.58546349]
[1726432606415,0.0801927,2367.5,2367.1,12.58546349]
[1726432607880,4.2624065,2367.7,2367.2,2.4545]
[1726432608129,0.07835367,2367.4,2367.3,1.50399635]
[1726432608589,4.2624065,2367.7,2367.3,1.50399635]
[1726432608784,0.07835367,2367.4,2367.3,1.50399635]
[1726432609017,4.2624065,2367.7,2367.3,1.50399635]
[1726432609312,0.07835367,2367.4,2367.3,1.50399635]
[1726432609484,4.2624065,2367.7,2367.3,1.50399635]
[1726432609687,0.07835367,2367.4,2367.3,1.50399635]
[1726432609885,4.2624065,2367.7,2367.3,1.50399635]
[1726432610411,0.07835367,2367.6,2367.3,1.50399635]
[1726432611096,0.07835367,2367.6,2367.4,0.39584964]
[1726432614902,0.0388065,2367.7,2367.6,12.50710982]
[1726432620790,19.25171193,2368.1,2367.4,0.39584964]
[1726432620791,19.25171193,2368.1,2367.7,12.38830332]
[1726432620988,19.25171193,2368.1,2367.7,13.62713365]
[1726432621327,15.02880193,2368.1,2367.7,12.38830332]
[1726432621692,19.25170193,2368.1,2367.7,12.38830332]
[1726432622068,15.02880193,2368.1,2367.7,12.38830332]
[1726432622489,4.29908829,2368.0,2367.7,12.38830332]
[1726432623205,0.07611829,2368.0,2367.7,12.38830332]
[1726432625244,0.07611829,2368.0,2367.7,13.86710365]
[1726432625737,8.24170243,2368.2,2367.7,13.86710365]
[1726432625954,4.22252,2368.3,2368.2,4.03046866]
[1726432626168,8.24156243,2368.3,2368.2,4.03046866]
[1726432626324,8.31515692,2368.3,2368.2,4.03046866]
[1726432628245,0.07359449,2368.3,2368.2,4.03046866]
[1726432629340,8.28003893,2368.5,2368.2,4.03046866]
[1726432629554,0.07377102,2368.4,2368.2,4.03046866]
[1726432629852,4.29609102,2368.4,2368.2,4.03046866]
[1726432630873,0.07377102,2368.4,2368.2,4.03046866]
[1726432631074,4.29612102,2368.4,2368.2,4.03046866]
[1726432632588,0.07377102,2368.4,2368.2,4.03046866]
[1726432633080,0.0388065,2368.5,2368.4,4.33622898]
[1726432633287,12.50200893,2368.5,2368.4,4.33622898]
[1726432633737,8.27992893,2368.5,2368.4,4.33622898]
[1726432634035,0.0388065,2368.5,2368.4,4.33622898]
[1726432634607,0.0388065,2368.5,2368.4,5.83356874]
[1726432634787,0.0388065,2368.5,2368.4,10.05581874]
[1726432635003,0.0388065,2368.5,2368.4,15.43991874]
[1726432635684,0.0388065,2368.5,2368.4,19.66216874]
[1726432636441,0.0388065,2368.5,2368.4,23.68121117]
[1726432636588,0.0388065,2368.5,2368.4,19.66216874]
[1726432637390,0.0388065,2368.5,2368.4,15.43991874]
[1726432637588,0.0388065,2368.5,2368.4,8.21766874]
[1726432638212,0.0388065,2368.5,2368.4,12.43991874]
[1726432638420,0.0388065,2368.5,2368.4,5.83356874]
[1726432638618,0.0388065,2368.5,2368.3,4.22231]
[1726432638619,4.22175,2368.7,2368.5,4.21742248]
[1726432640734,0.06962146,2368.6,2368.5,4.21742248]
[1726432640950,4.08866389,2368.6,2368.5,4.21742248]
[1726432641174,12.53246389,2368.6,2368.5,4.21742248]
[1726432642544,12.53246389,2368.6,2368.2,4.03046866]
[1726432642545,8.44486,2368.3,2368.2,4.03046866]
[1726432642722,12.46390243,2368.3,2368.2,4.03046866]
[1726432643057,12.53120317,2368.3,2368.2,4.03046866]
[1726432646574,17.30363317,2368.3,2368.2,4.03046866]
[1726432646735,20.30363317,2368.3,2368.2,4.15046866]
[1726432647319,15.53120317,2368.3,2368.2,4.15046866]
[1726432649138,4.28973074,2368.3,2368.2,4.15046866]
[1726432649339,0.06730074,2368.3,2368.2,4.15046866]
[1726432649869,4.222,2368.6,2368.3,0.05269926]
[1726432650183,8.44403,2368.6,2368.3,0.05269926]
[1726432650363,4.22209,2368.5,2368.3,0.05269926]
[1726432651883,8.44402,2368.6,2368.3,0.05269926]
[1726432652093,4.222,2368.6,2368.3,0.05269926]
[1726432652253,4.2221,2368.5,2368.3,0.05269926]
[1726432655679,4.222,2368.6,2368.3,0.05269926]
[1726432655978,4.22165,2368.8,2368.4,2.3449]
[1726432656175,4.22173,2368.7,2368.4,2.3449]
[1726432656584,0.06457805,2368.6,2368.4,2.3449]
[1726432657164,8.39335,2368.8,2368.4,2.3449]
[1726432657564,4.28416638,2368.7,2368.4,2.3449]
[1726432657798,4.28416638,2368.7,2368.4,3.45735694]
[1726432658479,0.06244638,2368.7,2368.4,3.45735694]
[1726432658813,4.22132,2369.0,2368.4,7.67958694]
[1726432659110,0.06249757,2368.6,2368.5,5.47338388]
[1726432659320,11.046616,2369.2,2368.5,7.81828388]
[1726432659482,6.825666,2369.2,2368.7,4.22161]
[1726432659794,11.046506,2369.2,2368.8,2.3449]
[1726432662083,4.2596465,2369.2,2368.8,2.3449]
[1726432662268,4.2596465,2369.2,2368.8,3.001551]
[1726432662706,4.22122,2369.0,2368.5,6.56687]
[1726432663007,4.22138,2368.9,2368.5,2.3449]
[1726432663307,4.22138,2368.9,2368.5,3.11813962]
[1726432667637,4.22122,2369.0,2368.5,3.11813962]
[1726432668319,8.4807065,2369.2,2368.6,4.22175]
[1726432668519,4.2597365,2369.2,2368.8,2.3449]
[1726432671459,0.06300478,2369.1,2368.8,2.3449]
[1726432675587,0.06300478,2369.1,2368.6,0.08442606]
[1726432675741,0.06300478,2369.1,2369.0,2.3868]
[1726432681385,6.7868595,2369.6,2369.1,2.3868]
[1726432681586,11.0063495,2370.0,2369.2,2.3868]
[1726432681745,11.0063495,2370.0,2369.2,2.98048]
[1726432681940,4.2584765,2369.9,2369.2,2.98048]
[1726432682387,4.2584765,2369.9,2369.2,2.3868]
[1726432682388,0.0388065,2369.9,2369.2,2.3868]
[1726432682865,0.0388065,2369.9,2369.1,3.0]
[1726432682866,0.0388065,2369.9,2369.3,0.08439864]
[1726432683069,0.0388065,2369.9,2369.3,2.55729864]
[1726432683267,0.0388065,2369.9,2369.5,2.4729]
[1726432683460,4.2585065,2369.9,2369.5,2.4729]
[1726432684180,0.0388065,2369.9,2369.5,2.4729]
[1726432684761,0.0388065,2369.9,2369.7,2.4729]
[1726432684978,0.0388065,2369.9,2369.8,0.24729]
[1726432685215,0.0388065,2369.9,2369.7,2.4729]
[1726432688881,0.05969781,2369.8,2369.7,2.4729]
[1726432694572,6.7868595,2370.3,2369.7,2.4729]
[1726432694783,6.7868595,2370.3,2369.8,4.01904243]
[1726432694989,0.05596399,2370.2,2369.9,2.4776]
[1726432695316,0.05596399,2370.2,2370.1,2.4776]
[1726432695618,6.7868595,2370.3,2370.1,2.4776]
[1726432699088,0.0388065,2370.6,2370.1,2.4776]
[1726432699293,0.0388065,2370.6,2370.3,2.4776]
[1726432702429,0.05600686,2370.5,2370.3,2.4776]
[1726432704242,0.05600686,2370.5,2370.1,2.4776]
[1726432706327,0.05600686,2370.5,2370.1,6.49664243]
[1726432706532,0.05600686,2370.5,2370.3,2.4776]
[1726432707556,0.05600686,2370.5,2370.4,5.56196129]
[1726432708628,0.00600686,2370.5,2370.4,5.56196129]
[1726432708847,0.04891853,2370.5,2370.4,5.4776]
[1726432709069,0.0388065,2370.6,2370.4,6.49223067]
[1726432709455,0.05527366,2370.5,2370.4,6.49223067]
[1726432709772,0.05527366,2370.5,2370.0,2.4776]
[1726432712982,0.05527366,2370.5,2370.2,2.3395]
[1726432713286,0.05527366,2370.5,2370.4,2.3395]
[1726432713447,0.05527366,2370.5,2370.4,5.8895]
[1726432715139,0.05527366,2370.5,2370.4,5.7629]
[1726432715340,0.05527366,2370.5,2370.3,3.63585424]
[1726432715580,0.05527366,2370.5,2370.2,2.3395]
[1726432716239,0.05527366,2370.5,2369.9,6.35854243]
[1726432716442,0.05527366,2370.5,2370.2,5.3395]
[1726432717097,0.05527366,2370.5,2370.3,6.35854243]
[1726432717377,0.05527366,2370.5,2370.4,5.3395]
[1726432719082,0.05527366,2370.5,2370.4,2.3395]
[1726432725294,0.05527366,2370.5,2370.2,5.3395]
[1726432725594,0.05527366,2370.5,2370.4,0.34234]
[1726432728192,0.05527366,2370.5,2370.4,2.68184]
[1726432728393,0.05527366,2370.5,2370.4,5.68184]
[1726432733996,0.05527366,2370.5,2370.2,3.66027873]
[1726432734288,0.05527366,2370.5,2369.9,0.66027873]
[1726432734610,0.05527366,2370.5,2369.8,4.07643073]
[1726432735035,0.05527366,2370.5,2369.8,4.73684986]
[1726432735339,0.05527366,2370.5,2369.7,0.66041913]
[1726432735340,4.2189,2370.3,2369.7,0.66041913]
[1726432735509,4.2189,2370.3,2369.5,5.07520094]
[1726432735510,4.2189,2370.3,2369.6,0.66041913]
[1726432735697,4.2189,2370.3,2369.5,4.85041913]
[1726432736032,0.05470538,2370.2,2369.5,4.85041913]
[1726432736237,0.05470538,2370.2,2369.5,5.00666201]
[1726432736597,0.05470538,2370.2,2369.5,0.81666201]
[1726432736798,0.05470538,2370.2,2369.5,3.0]
[1726432738134,4.27381538,2370.2,2369.5,3.0]
[1726432738352,4.21924,2370.1,2369.2,4.54562007]
[1726432738503,4.27342996,2370.1,2369.2,4.45781011]
[1726432739002,8.23845243,2370.0,2369.2,1.45781011]
[1726432739346,4.21959,2369.9,2368.9,0.4234]
[1726432739499,4.21959,2369.9,2368.9,1.26612045]
[1726432739840,0.05418532,2369.8,2368.9,1.26612045]
[1726432740701,4.27394532,2369.8,2368.9,1.26612045]
[1726432740905,0.05418532,2369.8,2368.9,1.26612045]
[1726432741233,4.2196,2369.9,2369.0,0.86013638]
[1726432741445,0.05418532,2369.7,2369.0,0.86013638]
[1726432741742,0.05418532,2369.6,2369.0,0.86013638]
[1726432742044,4.2196,2369.9,2369.0,0.86013638]
[1726432742347,4.2196,2369.9,2369.1,0.51262568]
[1726432742553,0.05418532,2369.8,2369.1,0.51262568]
[1726432742751,0.05418532,2369.8,2369.2,2.431]
[1726432743821,4.2196,2369.9,2369.2,2.431]
[1726432744022,0.05418532,2369.7,2369.2,2.431]
[1726432744223,8.43902,2370.0,2369.2,2.431]
[1726432744433,4.01904243,2370.2,2368.8,0.39124749]
[1726432744434,4.22061,2369.4,2368.8,0.39124749]
[1726432744620,8.23965243,2369.4,2368.8,0.39123861]
[1726432744825,0.05390191,2369.3,2368.8,0.39123861]
[1726432745019,0.05390191,2369.3,2368.5,2.431]
[1726432745350,0.05390191,2369.3,2368.6,0.2431]
[1726432745662,4.22021,2369.6,2368.6,0.2431]
[1726432745961,4.22021,2369.6,2368.6,3.2431]
[1726432746156,0.05373459,2369.5,2368.6,3.2431]
[1726432747935,0.05373459,2369.5,2368.7,2.431]
[1726432748136,0.05373459,2369.5,2368.8,3.56741]
[1726432748430,4.22004,2369.7,2368.8,3.56741]
[1726432748642,0.05318166,2369.4,2368.8,3.56741]
[1726432748835,4.22004,2369.7,2368.8,3.56741]
[1726432749063,0.05317701,2369.3,2368.8,3.56741]
[1726432749367,0.05317701,2369.2,2369.0,5.431]
[1726432749733,4.21934,2370.1,2369.1,4.01904243]
[1726432750056,4.22157,2368.8,2368.2,2.431]
[1726432750227,4.22157,2368.8,2368.0,2.2996]
[1726432750426,0.05142289,2368.7,2368.0,2.2996]
[1726432751330,0.05142289,2368.7,2368.0,5.2996]
[1726432753467,0.05142289,2368.7,2367.7,0.0388065]
[1726432753468,8.24174243,2368.2,2367.7,0.0388065]
[1726432753693,3.05142289,2368.7,2367.7,0.0388065]
[1726432753694,4.01904243,2367.8,2367.7,0.0388065]
[1726432753964,4.07018169,2367.8,2367.7,0.0388065]
[1726432754189,4.27445926,2367.8,2367.7,0.0388065]
[1726432754345,0.05113926,2367.8,2367.7,0.0388065]
[1726432754547,4.22231,2368.4,2367.7,0.0388065]
[1726432754548,4.22234,2368.4,2367.7,0.0388065]
[1726432754859,0.0508043,2367.8,2367.7,0.0388065]
[1726432755045,4.22272,2368.2,2367.7,0.0388065]
[1726432755243,0.05065071,2367.8,2367.7,0.0388065]
[1726432755445,4.22272,2368.2,2367.7,0.0388065]
[1726432755983,0.05065071,2368.1,2367.7,0.0388065]
[1726432756557,8.24140243,2368.4,2367.7,0.0388065]
[1726432756764,0.05060881,2368.0,2367.7,0.0388065]
[1726432756963,4.22262,2368.2,2367.7,0.0388065]
[1726432757172,8.24140243,2368.4,2367.7,0.0388065]
[1726432757173,0.05063209,2367.9,2367.7,0.0388065]
[1726432757471,4.22256,2368.3,2367.7,0.0388065]
[1726432757684,8.29299452,2367.8,2367.7,0.0388065]
[1726432757891,12.46568243,2367.8,2367.7,0.0388065]
[1726432758056,12.51631452,2367.8,2367.7,0.0388065]
[1726432760697,17.28963452,2367.8,2367.7,0.0388065]
[1726432760847,20.28963452,2367.8,2367.7,0.0388065]
[1726432763658,15.51631452,2367.8,2367.7,0.0388065]
[1726432763862,16.06631452,2367.8,2367.7,0.0388065]
[1726432764590,16.06631452,2367.8,2367.0,0.0388065]
[1726432764591,8.99914,2367.1,2367.0,0.0388065]
[1726432764790,4.22457,2367.1,2367.0,0.0388065]
[1726432764997,4.27393159,2367.1,2367.0,0.0388065]
[1726432765289,8.49850159,2367.1,2367.0,0.0388065]
[1726432766596,4.27393159,2367.1,2367.0,0.0388065]
[1726432766751,8.49850159,2367.1,2367.0,0.0388065]
[1726432770468,16.27307159,2367.1,2367.0,0.0388065]
[1726432777204,12.04850159,2367.1,2367.0,0.0388065]
[1726432780014,11.49850159,2367.1,2367.0,0.0388065]
[1726432780396,4.27393159,2367.1,2367.0,0.0388065]
[1726432780791,0.04936159,2367.1,2367.0,0.0388065]
[1726432782231,8.24280243,2367.6,2367.0,0.0388065]
[1726432782232,4.22376,2367.6,2367.0,0.0388065]
[1726432782433,0.04707539,2367.1,2367.0,0.0388065]
[1726432782636,4.22351,2367.7,2367.0,2.3662065]
[1726432782789,4.22351,2367.7,2367.1,2.3274]
[1726432782991,4.2235,2367.7,2367.2,0.77753518]
[1726432783285,4.2235,2367.7,2367.3,0.77753518]
[1726432783491,4.2235,2367.7,2367.1,2.3274]
[1726432783798,4.2235,2367.7,2367.2,0.33047314]
[1726432784700,11.0100595,2367.9,2367.3,2.3274]
[1726432785619,6.7868595,2367.9,2367.3,2.3274]
[1726432786331,4.22305,2368.0,2367.3,2.3274]
[1726432786529,4.22305,2368.0,2367.4,0.23274]
[1726432786893,8.44617,2368.0,2367.4,0.23274]
[1726432787094,4.22325,2367.9,2367.4,0.23274]
[1726432788093,4.22305,2368.0,2367.4,0.23274]
[1726432788941,4.22345,2367.8,2367.3,2.3274]
[1726432789142,8.44689,2367.8,2367.3,2.3274]
[1726432789293,4.22344,2367.8,2367.3,2.3274]
[1726432791554,0.04736432,2367.7,2367.3,2.3274]
[1726432791846,4.22344,2367.8,2367.3,2.3274]
[1726432792370,0.04736432,2367.7,2367.3,2.3274]
[1726432792686,0.04736432,2367.7,2367.3,3.405011]
[1726432792981,0.04736432,2367.6,2367.5,2.2502]
[1726432793143,0.04736432,2367.6,2367.5,6.47406]
[1726432793346,11.0095895,2368.2,2367.5,6.47406]
[1726432793347,15.2323095,2368.2,2367.5,6.47406]
[1726432793597,0.04578765,2368.1,2367.5,6.47406]
[1726432793759,4.26860765,2368.1,2367.5,3.320003]
[1726432794081,4.22302,2368.0,2367.5,2.2502]
[1726432794284,8.44616,2368.0,2367.5,2.2502]
[1726432794597,0.04632794,2367.9,2367.5,2.2502]
[1726432800405,4.22344,2367.8,2367.5,2.2502]
[1726432800897,0.04640709,2367.7,2367.5,2.2502]
[1726432801301,4.22319,2367.9,2367.5,2.2502]
[1726432801490,0.04639312,2367.6,2367.5,2.2502]
[1726432802018,4.22333,2367.8,2367.5,2.2502]
[1726432802174,0.04639312,2367.6,2367.5,2.2502]
[1726432802521,4.22333,2367.8,2367.5,2.2502]
[1726432802726,0.0463745,2367.6,2367.5,2.2502]
[1726432802873,4.22333,2367.8,2367.5,2.2502]
[1726432803075,0.0463745,2367.6,2367.5,2.2502]
[1726432803287,4.22333,2367.8,2367.5,2.2502]
[1726432803797,0.0463745,2367.7,2367.5,2.2502]
[1726432804314,4.22317,2367.9,2367.5,2.2502]
[1726432804770,0.04637449,2367.8,2367.5,2.2502]
[1726432805589,0.04637449,2367.8,2367.7,2.2502]
[1726432805796,15.2322895,2368.2,2367.7,2.2502]
[1726432806000,0.04637449,2367.8,2367.7,2.2502]
[1726432806210,4.22284,2368.1,2367.7,2.2502]
[1726432806442,0.04637449,2367.8,2367.7,2.2502]
[1726432806707,4.22284,2368.1,2367.7,2.2502]
[1726432807172,0.04641639,2368.0,2367.7,2.2502]
[1726432809495,4.26938639,2368.0,2367.7,2.2502]
[1726432812199,0.04641639,2368.0,2367.9,8.4463]
[1726432812537,6.7868595,2368.6,2368.3,2.311]
[1726432812767,4.2216,2368.8,2368.4,0.2311]
[1726432812917,4.2216,2368.8,2368.3,2.311]
[1726432813110,8.44328,2368.8,2368.3,2.311]
[1726432813444,4.2216,2368.8,2368.3,2.311]
[1726432815552,4.22189,2368.7,2368.3,2.311]
[1726432820114,0.04034786,2368.6,2368.3,2.311]
[1726432821164,4.2216,2368.8,2368.3,2.311]
[1726432821657,4.2216,2368.8,2368.3,6.53343]
[1726432821658,0.04034786,2368.7,2368.3,6.53343]
[1726432821866,0.04034786,2368.7,2368.4,4.22225]
[1726432822031,4.2213,2369.0,2368.5,2.3428]
[1726432822361,0.04034786,2368.6,2368.5,2.3428]
[1726432822545,11.0078695,2369.1,2368.5,6.56486]
[1726432822757,0.04034786,2368.6,2368.5,11.9731108]
[1726432823076,0.04034786,2368.6,2368.5,6.56477]
[1726432823275,4.22101,2369.1,2368.5,10.78674]
[1726432823444,4.22101,2369.1,2368.6,4.2219]
[1726432823981,4.22092,2369.2,2368.7,2.3428]
[1726432824346,4.22092,2369.2,2368.7,6.56452]
[1726432824669,4.22092,2369.2,2368.7,2.3428]
[1726432824878,4.2212,2369.0,2368.7,2.3428]
[1726432829124,4.22155,2368.8,2368.4,2.3428]
[1726432830229,8.44255,2369.0,2368.4,2.3428]
[1726432831803,4.22154,2368.8,2368.4,2.3428]
[1726432833405,4.22154,2368.8,2368.4,3.421546]
[1726432833824,4.22173,2368.7,2368.4,2.3428]
[1726432834284,4.22208,2368.5,2368.0,2.2852]